[Event "Titled Tuesday Blitz April 11 Early 2023"]
[White "Horobetz, Graham"]
[Black "Sadhwani, Raunak"]
[WhiteFideId "2047322"]
[BlackFideId "35093487"]
[WhiteElo "2609"]
[BlackElo "2631"]
[Result "0-1"]
[Round "04"]
[TimeControl "180+2"]
[Date "2023.04.11"]
[WhiteClock "0:00:01"]
[BlackClock "0:02:13"]

1. e4 {[%clk 0:03:00]}  g6 {[%clk 0:03:00]} 2. d4 {[%clk 0:03:00]}  Bg7 {[%clk 0:03:01]} 3. Nc3 {[%clk 0:03:00]}  d6 {[%clk 0:03:01]} 4. Nf3 {[%clk 0:02:59]}  Nf6 {[%clk 0:03:01]} 5. h3 {[%clk 0:02:59]}  O-O {[%clk 0:03:01]} 6. Be3 {[%clk 0:02:59]}  a6 {[%clk 0:03:01]} 7. a4 {[%clk 0:02:58]}  b6 {[%clk 0:03:01]} 8. Bd3 {[%clk 0:02:52]}  Bb7 {[%clk 0:03:01]} 9. O-O {[%clk 0:02:53]}  Nc6 {[%clk 0:03:02]} 10. Nd2 {[%clk 0:02:38]}  Nd7 {[%clk 0:03:00]} 11. d5 {[%clk 0:02:29]}  Nb4 {[%clk 0:03:00]} 12. Be2 {[%clk 0:02:18]}  c6 {[%clk 0:02:59]} 13. dxc6 {[%clk 0:02:09]}  Bxc6 {[%clk 0:03:00]} 14. Nb3 {[%clk 0:01:54]}  Nc5 {[%clk 0:02:57]} 15. Bd4 {[%clk 0:01:43]}  Nxb3 {[%clk 0:02:54]} 16. Bxg7 {[%clk 0:01:39]}  Nxa1 {[%clk 0:02:54]} 17. Bxf8 {[%clk 0:01:37]}  Qxf8 {[%clk 0:02:51]} 18. Qxa1 {[%clk 0:01:34]}  Nxc2 {[%clk 0:02:52]} 19. Qd1 {[%clk 0:01:28]}  Nb4 {[%clk 0:02:47]} 20. Qd4 {[%clk 0:01:28]}  a5 {[%clk 0:02:46]} 21. Qxb6 {[%clk 0:01:27]}  Qb8 {[%clk 0:02:45]} 22. Qxb8+ {[%clk 0:01:26]}  Rxb8 {[%clk 0:02:46]} 23. Bb5 {[%clk 0:01:23]}  Bb7 {[%clk 0:02:45]} 24. f3 {[%clk 0:01:17]}  Rc8 {[%clk 0:02:45]} 25. Rc1 {[%clk 0:01:16]}  Kg7 {[%clk 0:02:45]} 26. Ne2 {[%clk 0:01:13]}  Kf6 {[%clk 0:02:35]} 27. Rxc8 {[%clk 0:01:10]}  Bxc8 {[%clk 0:02:35]} 28. Kf2 {[%clk 0:01:10]}  e5 {[%clk 0:02:33]} 29. Nc1 {[%clk 0:01:07]}  Be6 {[%clk 0:02:33]} 30. Ne2 {[%clk 0:00:47]}  Ke7 {[%clk 0:02:30]} 31. Nc3 {[%clk 0:00:44]}  Kd8 {[%clk 0:02:31]} 32. Ke3 {[%clk 0:00:42]}  Nc2+ {[%clk 0:02:27]} 33. Kd2 {[%clk 0:00:40]}  Nd4 {[%clk 0:02:27]} 34. Bd3 {[%clk 0:00:33]}  Nb3+ {[%clk 0:02:25]} 35. Kc2 {[%clk 0:00:31]}  Nc5 {[%clk 0:02:26]} 36. Bb5 {[%clk 0:00:31]}  f5 {[%clk 0:02:26]} 37. Kd2 {[%clk 0:00:30]}  Kc7 {[%clk 0:02:24]} 38. exf5 {[%clk 0:00:27]}  gxf5 {[%clk 0:02:25]} 39. g4 {[%clk 0:00:27]}  f4 {[%clk 0:02:23]} 40. Bd3 {[%clk 0:00:23]}  h6 {[%clk 0:02:21]} 41. h4 {[%clk 0:00:23]}  d5 {[%clk 0:02:21]} 42. g5 {[%clk 0:00:18]}  hxg5 {[%clk 0:02:22]} 43. hxg5 {[%clk 0:00:19]}  Kd6 {[%clk 0:02:21]} 44. Bc2 {[%clk 0:00:14]}  Ke7 {[%clk 0:02:18]} 45. Na2 {[%clk 0:00:10]}  d4 {[%clk 0:02:17]} 46. Nc1 {[%clk 0:00:11]}  Bd5 {[%clk 0:02:17]} 47. Bd1 {[%clk 0:00:08]}  Kf7 {[%clk 0:02:16]} 48. Bc2 {[%clk 0:00:04]}  Bxf3 {[%clk 0:02:15]} 49. Nd3 {[%clk 0:00:04]}  Nxd3 {[%clk 0:02:15]} 50. Kxd3 {[%clk 0:00:05]}  Bd5 {[%clk 0:02:13]} 51. b3 {[%clk 0:00:02]}  f3 {[%clk 0:02:14]} 52. Bd1 {[%clk 0:00:01]}  Kg6 {[%clk 0:02:13]} 53. Bxf3 {[%clk 0:00:01]}  Bxf3 {[%clk 0:02:13]} 0-1


[Site "https://www.chess.com"]

[Event "Titled Tuesday Blitz April 11 Early 2023"]
[White "Alekseenko, Kirill"]
[Black "Al-Tarboush, Ward"]
[WhiteFideId "4135539"]
[BlackFideId "7601450"]
[WhiteElo "2683"]
[BlackElo "2265"]
[Result "0-1"]
[Round "04"]
[TimeControl "180+2"]
[Date "2023.04.11"]
[WhiteClock "0:00:01"]
[BlackClock "0:00:13"]

1. d4 {[%clk 0:03:00]}  Nf6 {[%clk 0:02:58]} 2. Nc3 {[%clk 0:03:01]}  d5 {[%clk 0:02:58]} 3. Bf4 {[%clk 0:03:02]}  a6 {[%clk 0:02:56]} 4. e3 {[%clk 0:03:02]}  Bf5 {[%clk 0:02:56]} 5. f3 {[%clk 0:03:02]}  c5 {[%clk 0:02:54]} 6. g4 {[%clk 0:02:59]}  Bg6 {[%clk 0:02:51]} 7. h4 {[%clk 0:02:59]}  cxd4 {[%clk 0:02:48]} 8. exd4 {[%clk 0:02:59]}  h5 {[%clk 0:02:44]} 9. g5 {[%clk 0:02:59]}  Ng8 {[%clk 0:02:44]} 10. Bd3 {[%clk 0:03:00]}  Bxd3 {[%clk 0:02:42]} 11. Qxd3 {[%clk 0:03:00]}  e6 {[%clk 0:02:36]} 12. Nge2 {[%clk 0:03:01]}  Ne7 {[%clk 0:02:35]} 13. O-O-O {[%clk 0:02:59]}  Nbc6 {[%clk 0:02:34]} 14. Kb1 {[%clk 0:02:59]}  Nf5 {[%clk 0:02:29]} 15. g6 {[%clk 0:02:42]}  fxg6 {[%clk 0:02:29]} 16. Bg5 {[%clk 0:02:43]}  Qd7 {[%clk 0:02:27]} 17. Nf4 {[%clk 0:02:42]}  Nb4 {[%clk 0:02:19]} 18. Qe2 {[%clk 0:02:35]}  Ng3 {[%clk 0:02:16]} 19. Qxe6+ {[%clk 0:02:21]}  Qxe6 {[%clk 0:02:15]} 20. Nxe6 {[%clk 0:02:22]}  Nxh1 {[%clk 0:01:51]} 21. Nc7+ {[%clk 0:02:22]}  Kd7 {[%clk 0:01:12]} 22. Nxa8 {[%clk 0:02:23]}  Bd6 {[%clk 0:01:12]} 23. Nb6+ {[%clk 0:02:15]}  Kc6 {[%clk 0:01:12]} 24. Rxh1 {[%clk 0:02:15]}  Kxb6 {[%clk 0:01:10]} 25. a3 {[%clk 0:02:15]}  Nc6 {[%clk 0:01:09]} 26. Nxd5+ {[%clk 0:02:16]}  Ka7 {[%clk 0:01:09]} 27. c3 {[%clk 0:02:15]}  Rf8 {[%clk 0:01:08]} 28. f4 {[%clk 0:02:15]}  Re8 {[%clk 0:01:07]} 29. Rf1 {[%clk 0:02:05]}  Re2 {[%clk 0:01:07]} 30. f5 {[%clk 0:01:58]}  gxf5 {[%clk 0:01:08]} 31. Rxf5 {[%clk 0:01:59]}  Na5 {[%clk 0:01:08]} 32. Nf4 {[%clk 0:01:44]}  Bxf4 {[%clk 0:01:06]} 33. Rxa5 {[%clk 0:01:41]}  Bg3 {[%clk 0:01:04]} 34. Rf5 {[%clk 0:01:31]}  Re4 {[%clk 0:01:00]} 35. Rf7 {[%clk 0:01:29]}  g6 {[%clk 0:01:00]} 36. Rg7 {[%clk 0:01:25]}  Bxh4 {[%clk 0:00:57]} 37. Bxh4 {[%clk 0:01:25]}  Rxh4 {[%clk 0:00:57]} 38. Rxg6 {[%clk 0:01:26]}  Rh1+ {[%clk 0:00:57]} 39. Ka2 {[%clk 0:01:25]}  h4 {[%clk 0:00:56]} 40. Rh6 {[%clk 0:01:26]}  h3 {[%clk 0:00:56]} 41. a4 {[%clk 0:01:26]}  a5 {[%clk 0:00:55]} 42. Rh5 {[%clk 0:01:23]}  b6 {[%clk 0:00:52]} 43. Rh7+ {[%clk 0:01:24]}  Ka6 {[%clk 0:00:52]} 44. Kb3 {[%clk 0:01:21]}  Rh2 {[%clk 0:00:46]} 45. Ka3 {[%clk 0:01:12]}  Rh1 {[%clk 0:00:46]} 46. Ka2 {[%clk 0:01:13]}  Rh2 {[%clk 0:00:46]} 47. Kb3 {[%clk 0:01:13]}  Rh1 {[%clk 0:00:46]} 48. Kc4 {[%clk 0:01:12]}  Rh2 {[%clk 0:00:20]} 49. b4 {[%clk 0:01:02]}  axb4 {[%clk 0:00:21]} 50. cxb4 {[%clk 0:01:03]}  b5+ {[%clk 0:00:21]} 51. axb5+ {[%clk 0:01:02]}  Kb6 {[%clk 0:00:21]} 52. Rh6+ {[%clk 0:01:02]}  Kb7 {[%clk 0:00:22]} 53. b6 {[%clk 0:00:58]}  Rc2+ {[%clk 0:00:18]} 54. Kb5 {[%clk 0:00:58]}  h2 {[%clk 0:00:19]} 55. Rh7+ {[%clk 0:00:58]}  Kb8 {[%clk 0:00:19]} 56. d5 {[%clk 0:00:54]}  Rd2 {[%clk 0:00:19]} 57. Kc6 {[%clk 0:00:30]}  Rc2+ {[%clk 0:00:19]} 58. Kd6 {[%clk 0:00:30]}  Rd2 {[%clk 0:00:19]} 59. b7 {[%clk 0:00:24]}  Rc2 {[%clk 0:00:13]} 60. b5 {[%clk 0:00:23]}  Rd2 {[%clk 0:00:12]} 61. Kc6 {[%clk 0:00:23]}  Rc2+ {[%clk 0:00:12]} 62. Kd6 {[%clk 0:00:20]}  Rd2 {[%clk 0:00:12]} 63. Kc5 {[%clk 0:00:14]}  Rc2+ {[%clk 0:00:12]} 64. Kb4 {[%clk 0:00:14]}  Rb2+ {[%clk 0:00:12]} 65. Ka5 {[%clk 0:00:14]}  Ra2+ {[%clk 0:00:12]} 66. Kb4 {[%clk 0:00:12]}  Rb2+ {[%clk 0:00:12]} 67. Kc4 {[%clk 0:00:13]}  Rc2+ {[%clk 0:00:12]} 68. Kd4 {[%clk 0:00:13]}  Rd2+ {[%clk 0:00:12]} 69. Ke5 {[%clk 0:00:14]}  Re2+ {[%clk 0:00:12]} 70. Kd6 {[%clk 0:00:15]}  Rc2 {[%clk 0:00:12]} 71. Ke6 {[%clk 0:00:08]}  Re2+ {[%clk 0:00:12]} 72. Kd7 {[%clk 0:00:09]}  Rg2 {[%clk 0:00:12]} 73. d6 {[%clk 0:00:08]}  Rg7+ {[%clk 0:00:11]} 74. Rxg7 {[%clk 0:00:07]}  h1=Q {[%clk 0:00:12]} 75. Ke8 {[%clk 0:00:03]}  Qe4+ {[%clk 0:00:11]} 76. Re7 {[%clk 0:00:03]}  Qg6+ {[%clk 0:00:11]} 77. Kd7 {[%clk 0:00:03]}  Kxb7 {[%clk 0:00:11]} 78. Kd8+ {[%clk 0:00:03]}  Kb8 {[%clk 0:00:11]} 79. d7 {[%clk 0:00:02]}  Qg5 {[%clk 0:00:12]} 80. b6 {[%clk 0:00:01]}  Kb7 {[%clk 0:00:12]} 81. Ke8 {[%clk 0:00:01]}  Qg8# {[%clk 0:00:13]} 0-1


[Site "https://www.chess.com"]

[Event "Titled Tuesday Blitz April 11 Early 2023"]
[White "Ozates, Tuna"]
[Black "Steinberg, Nitzan"]
[WhiteFideId "6354521"]
[BlackFideId "2801795"]
[WhiteElo "2151"]
[BlackElo "2486"]
[Result "0-1"]
[Round "04"]
[TimeControl "180+2"]
[Date "2023.04.11"]
[WhiteClock "0:01:48"]
[BlackClock "0:01:39"]

1. e4 {[%clk 0:03:00]}  c5 {[%clk 0:03:00]} 2. Nf3 {[%clk 0:02:59]}  e6 {[%clk 0:03:01]} 3. d4 {[%clk 0:02:59]}  cxd4 {[%clk 0:03:02]} 4. Nxd4 {[%clk 0:02:59]}  Nc6 {[%clk 0:03:02]} 5. Nc3 {[%clk 0:02:59]}  Qc7 {[%clk 0:03:03]} 6. Be3 {[%clk 0:02:58]}  a6 {[%clk 0:03:04]} 7. Nxc6 {[%clk 0:02:57]}  bxc6 {[%clk 0:03:03]} 8. Bd3 {[%clk 0:02:55]}  Nf6 {[%clk 0:03:03]} 9. O-O {[%clk 0:02:55]}  d5 {[%clk 0:03:03]} 10. exd5 {[%clk 0:02:54]}  cxd5 {[%clk 0:03:02]} 11. h3 {[%clk 0:02:41]}  Be7 {[%clk 0:03:02]} 12. Bd4 {[%clk 0:02:41]}  e5 {[%clk 0:02:54]} 13. Bxe5 {[%clk 0:02:35]}  Qxe5 {[%clk 0:02:54]} 14. Re1 {[%clk 0:02:35]}  Qd6 {[%clk 0:02:46]} 15. Qf3 {[%clk 0:02:19]}  O-O {[%clk 0:02:40]} 16. g4 {[%clk 0:02:18]}  Bb7 {[%clk 0:02:34]} 17. g5 {[%clk 0:02:14]}  Ne4 {[%clk 0:02:34]} 18. h4 {[%clk 0:02:07]}  f5 {[%clk 0:02:17]} 19. Rad1 {[%clk 0:02:00]}  Rad8 {[%clk 0:02:09]} 20. Ne2 {[%clk 0:01:59]}  Qb6 {[%clk 0:02:08]} 21. Nf4 {[%clk 0:01:58]}  Bc5 {[%clk 0:01:59]} 22. Re2 {[%clk 0:01:55]}  Rde8 {[%clk 0:01:53]} 23. c4 {[%clk 0:01:52]}  dxc4 {[%clk 0:01:48]} 24. Bxc4+ {[%clk 0:01:52]}  Kh8 {[%clk 0:01:48]} 25. Kg2 {[%clk 0:01:48]}  Nxg5 {[%clk 0:01:39]} 0-1


[Site "https://www.chess.com"]

[Event "Titled Tuesday Blitz April 11 Early 2023"]
[White "Xiong, Jeffery"]
[Black "Volkov, Maksim"]
[WhiteFideId "2047640"]
[BlackFideId "54123070"]
[WhiteElo "2726"]
[BlackElo "2312"]
[Result "1-0"]
[Round "04"]
[TimeControl "180+2"]
[Date "2023.04.11"]
[WhiteClock "0:01:32"]
[BlackClock "0:00:12"]

1. e4 {[%clk 0:03:00]}  c5 {[%clk 0:02:57]} 2. Nf3 {[%clk 0:03:01]}  d6 {[%clk 0:02:52]} 3. Nc3 {[%clk 0:03:01]}  Nf6 {[%clk 0:02:50]} 4. d4 {[%clk 0:03:01]}  cxd4 {[%clk 0:02:50]} 5. Qxd4 {[%clk 0:03:02]}  Nc6 {[%clk 0:02:48]} 6. Qd3 {[%clk 0:03:02]}  g6 {[%clk 0:02:39]} 7. Nd5 {[%clk 0:03:02]}  Bg7 {[%clk 0:02:37]} 8. c3 {[%clk 0:03:02]}  O-O {[%clk 0:02:37]} 9. Bg5 {[%clk 0:03:02]}  Nxd5 {[%clk 0:02:31]} 10. exd5 {[%clk 0:03:03]}  Ne5 {[%clk 0:02:24]} 11. Nxe5 {[%clk 0:03:03]}  Bxe5 {[%clk 0:02:24]} 12. Be2 {[%clk 0:03:03]}  a6 {[%clk 0:02:18]} 13. a4 {[%clk 0:03:03]}  Bf5 {[%clk 0:02:17]} 14. Qd2 {[%clk 0:03:03]}  Qd7 {[%clk 0:02:11]} 15. a5 {[%clk 0:03:01]}  Rfc8 {[%clk 0:02:08]} 16. O-O {[%clk 0:03:01]}  Be4 {[%clk 0:02:06]} 17. Be3 {[%clk 0:02:55]}  Qf5 {[%clk 0:01:57]} 18. Rfd1 {[%clk 0:02:37]}  Qd7 {[%clk 0:01:34]} 19. Re1 {[%clk 0:02:33]}  h5 {[%clk 0:01:31]} 20. h3 {[%clk 0:02:17]}  Bf5 {[%clk 0:01:21]} 21. Bd4 {[%clk 0:02:06]}  Bxd4 {[%clk 0:01:17]} 22. Qxd4 {[%clk 0:02:07]}  Qc7 {[%clk 0:01:13]} 23. g4 {[%clk 0:02:03]}  hxg4 {[%clk 0:01:11]} 24. hxg4 {[%clk 0:02:04]}  Bd7 {[%clk 0:01:11]} 25. Bf3 {[%clk 0:02:04]}  Re8 {[%clk 0:01:09]} 26. Kg2 {[%clk 0:02:04]}  f6 {[%clk 0:01:07]} 27. g5 {[%clk 0:01:57]}  Qc5 {[%clk 0:00:53]} 28. Qh4 {[%clk 0:01:54]}  fxg5 {[%clk 0:00:22]} 29. Qxg5 {[%clk 0:01:55]}  Kf7 {[%clk 0:00:22]} 30. Rh1 {[%clk 0:01:49]}  Rh8 {[%clk 0:00:19]} 31. Rae1 {[%clk 0:01:49]}  e5 {[%clk 0:00:15]} 32. Be4 {[%clk 0:01:32]}  Rag8 {[%clk 0:00:11]} 33. Rxh8 {[%clk 0:01:31]}  Rxh8 {[%clk 0:00:12]} 34. Bxg6+ {[%clk 0:01:32]} 1-0


[Site "https://www.chess.com"]

[Event "Titled Tuesday Blitz April 11 Early 2023"]
[White "Terry, Renato"]
[Black "Hua, Lefong"]
[WhiteFideId "3803457"]
[BlackFideId "2602253"]
[WhiteElo "2575"]
[BlackElo "2600"]
[Result "1-0"]
[Round "04"]
[TimeControl "180+2"]
[Date "2023.04.11"]
[WhiteClock "0:00:06"]
[BlackClock "0:00:06"]

1. Nf3 {[%clk 0:02:57]}  Nf6 {[%clk 0:03:00]} 2. b4 {[%clk 0:02:55]}  g6 {[%clk 0:03:00]} 3. Bb2 {[%clk 0:02:56]}  Bg7 {[%clk 0:03:00]} 4. e3 {[%clk 0:02:56]}  O-O {[%clk 0:03:00]} 5. c4 {[%clk 0:02:57]}  d6 {[%clk 0:02:58]} 6. Be2 {[%clk 0:02:55]}  a5 {[%clk 0:02:50]} 7. b5 {[%clk 0:02:53]}  c5 {[%clk 0:02:46]} 8. O-O {[%clk 0:02:52]}  b6 {[%clk 0:02:42]} 9. d4 {[%clk 0:02:51]}  cxd4 {[%clk 0:02:41]} 10. exd4 {[%clk 0:02:51]}  d5 {[%clk 0:02:40]} 11. c5 {[%clk 0:02:51]}  Ne4 {[%clk 0:02:30]} 12. c6 {[%clk 0:02:50]}  Bg4 {[%clk 0:02:26]} 13. a4 {[%clk 0:02:47]}  Ra7 {[%clk 0:02:20]} 14. h3 {[%clk 0:02:47]}  Bxf3 {[%clk 0:02:20]} 15. Bxf3 {[%clk 0:02:48]}  e6 {[%clk 0:02:18]} 16. Nc3 {[%clk 0:02:32]}  Nd6 {[%clk 0:02:12]} 17. Ne2 {[%clk 0:02:25]}  Nc4 {[%clk 0:02:05]} 18. Bc3 {[%clk 0:02:25]}  Qd6 {[%clk 0:02:02]} 19. Nc1 {[%clk 0:02:21]}  Rc8 {[%clk 0:01:51]} 20. Nd3 {[%clk 0:02:21]}  Rac7 {[%clk 0:01:42]} 21. Nb2 {[%clk 0:02:15]}  Nxb2 {[%clk 0:01:36]} 22. Bxb2 {[%clk 0:02:16]}  Nxc6 {[%clk 0:01:35]} 23. bxc6 {[%clk 0:02:17]}  Rxc6 {[%clk 0:01:36]} 24. Rb1 {[%clk 0:01:59]}  Rc4 {[%clk 0:01:29]} 25. Be2 {[%clk 0:01:52]}  Rb4 {[%clk 0:01:18]} 26. Ba3 {[%clk 0:01:51]}  Rxb1 {[%clk 0:01:18]} 27. Bxd6 {[%clk 0:01:52]}  Rxd1 {[%clk 0:01:17]} 28. Rxd1 {[%clk 0:01:53]}  Bf6 {[%clk 0:01:09]} 29. Bb5 {[%clk 0:01:52]}  Rc2 {[%clk 0:01:07]} 30. g3 {[%clk 0:01:49]}  h5 {[%clk 0:01:06]} 31. h4 {[%clk 0:01:46]}  Kg7 {[%clk 0:01:06]} 32. Rd3 {[%clk 0:01:35]}  Rc1+ {[%clk 0:01:04]} 33. Kg2 {[%clk 0:01:35]}  Rc2 {[%clk 0:01:05]} 34. Be5 {[%clk 0:01:24]}  Bxe5 {[%clk 0:01:01]} 35. dxe5 {[%clk 0:01:25]}  f6 {[%clk 0:01:00]} 36. Re3 {[%clk 0:01:23]}  fxe5 {[%clk 0:00:52]} 37. Rxe5 {[%clk 0:01:24]}  Kf6 {[%clk 0:00:53]} 38. Re3 {[%clk 0:01:25]}  e5 {[%clk 0:00:52]} 39. Rf3+ {[%clk 0:01:24]}  Ke7 {[%clk 0:00:52]} 40. Bd3 {[%clk 0:01:21]}  Ra2 {[%clk 0:00:48]} 41. Bxg6 {[%clk 0:01:21]}  Rxa4 {[%clk 0:00:47]} 42. Bxh5 {[%clk 0:01:19]}  e4 {[%clk 0:00:43]} 43. Rb3 {[%clk 0:01:11]}  Ra2 {[%clk 0:00:30]} 44. Kf1 {[%clk 0:00:37]}  a4 {[%clk 0:00:23]} 45. Rxb6 {[%clk 0:00:36]}  a3 {[%clk 0:00:24]} 46. Ra6 {[%clk 0:00:28]}  d4 {[%clk 0:00:19]} 47. Bg6 {[%clk 0:00:24]}  e3 {[%clk 0:00:17]} 48. fxe3 {[%clk 0:00:24]}  dxe3 {[%clk 0:00:18]} 49. h5 {[%clk 0:00:19]}  Rf2+ {[%clk 0:00:18]} 50. Ke1 {[%clk 0:00:16]}  Rg2 {[%clk 0:00:17]} 51. Ra7+ {[%clk 0:00:10]}  Kf6 {[%clk 0:00:14]} 52. Rxa3 {[%clk 0:00:09]}  Rxg3 {[%clk 0:00:13]} 53. Ke2 {[%clk 0:00:09]}  Kg5 {[%clk 0:00:12]} 54. Ra5+ {[%clk 0:00:09]}  Kh6 {[%clk 0:00:12]} 55. Rb5 {[%clk 0:00:09]}  Rh3 {[%clk 0:00:12]} 56. Re5 {[%clk 0:00:08]}  Rg3 {[%clk 0:00:12]} 57. Kf1 {[%clk 0:00:09]}  Kg7 {[%clk 0:00:10]} 58. Re6 {[%clk 0:00:09]}  Kh6 {[%clk 0:00:09]} 59. Be8+ {[%clk 0:00:09]}  Kh7 {[%clk 0:00:09]} 60. Bb5 {[%clk 0:00:07]}  Kg7 {[%clk 0:00:07]} 61. Bd3 {[%clk 0:00:07]}  Kh8 {[%clk 0:00:06]} 62. h6 {[%clk 0:00:06]}  Kg8 {[%clk 0:00:06]} 63. Re8+ {[%clk 0:00:06]}  Kf7 {[%clk 0:00:06]} 64. h7 {[%clk 0:00:06]}  Rh3 {[%clk 0:00:06]} 65. h8=Q {[%clk 0:00:06]} 1-0


[Site "https://www.chess.com"]

[Event "Titled Tuesday Blitz April 11 Early 2023"]
[White "Jain Kashish Manoj"]
[Black "Makarian, Rudik"]
[WhiteFideId "35081098"]
[BlackFideId "44105681"]
[WhiteElo "2191"]
[BlackElo "2430"]
[Result "0-1"]
[Round "04"]
[TimeControl "180+2"]
[Date "2023.04.11"]
[WhiteClock "0:00:01"]
[BlackClock "0:02:05"]

1. e4 {[%clk 0:03:00]}  c5 {[%clk 0:03:00]} 2. Nf3 {[%clk 0:03:00]}  Nc6 {[%clk 0:03:00]} 3. Bb5 {[%clk 0:03:00]}  e6 {[%clk 0:03:01]} 4. Bxc6 {[%clk 0:02:58]}  bxc6 {[%clk 0:03:02]} 5. d3 {[%clk 0:02:49]}  Bd6 {[%clk 0:03:02]} 6. Nbd2 {[%clk 0:02:32]}  Ne7 {[%clk 0:03:00]} 7. b3 {[%clk 0:02:25]}  O-O {[%clk 0:02:57]} 8. Bb2 {[%clk 0:02:15]}  f6 {[%clk 0:02:57]} 9. e5 {[%clk 0:02:04]}  fxe5 {[%clk 0:02:57]} 10. Nxe5 {[%clk 0:02:05]}  Bc7 {[%clk 0:02:53]} 11. Qe2 {[%clk 0:01:48]}  d6 {[%clk 0:02:52]} 12. Nef3 {[%clk 0:01:44]}  e5 {[%clk 0:02:52]} 13. O-O-O {[%clk 0:01:40]}  a5 {[%clk 0:02:53]} 14. a4 {[%clk 0:01:39]}  Nd5 {[%clk 0:02:51]} 15. Kb1 {[%clk 0:01:33]}  Nf4 {[%clk 0:02:47]} 16. Qf1 {[%clk 0:01:33]}  Bg4 {[%clk 0:02:45]} 17. h3 {[%clk 0:01:27]}  Bh5 {[%clk 0:02:45]} 18. Re1 {[%clk 0:01:24]}  Qd7 {[%clk 0:02:42]} 19. Ng5 {[%clk 0:00:45]}  h6 {[%clk 0:02:39]} 20. Nge4 {[%clk 0:00:45]}  Ne6 {[%clk 0:02:39]} 21. Ng3 {[%clk 0:00:35]}  Bg6 {[%clk 0:02:39]} 22. Nc4 {[%clk 0:00:30]}  Rab8 {[%clk 0:02:39]} 23. Ka2 {[%clk 0:00:28]}  Nd4 {[%clk 0:02:38]} 24. Bxd4 {[%clk 0:00:15]}  cxd4 {[%clk 0:02:39]} 25. Qe2 {[%clk 0:00:13]}  Rb4 {[%clk 0:02:34]} 26. h4 {[%clk 0:00:09]}  Rfb8 {[%clk 0:02:33]} 27. h5 {[%clk 0:00:08]}  Bf7 {[%clk 0:02:34]} 28. Qd2 {[%clk 0:00:05]}  c5 {[%clk 0:02:12]} 29. Nb2 {[%clk 0:00:03]}  Rxa4+ {[%clk 0:02:05]} 30. Nxa4 {[%clk 0:00:03]}  Qxa4+ {[%clk 0:02:05]} 31. Kb1 {[%clk 0:00:01]}  Bxb3 {[%clk 0:02:06]} 32. cxb3 {[%clk 0:00:01]}  Qxb3+ {[%clk 0:02:05]} 33. Kc1 {[%clk 0:00:01]}  Qb1# {[%clk 0:02:05]} 0-1


[Site "https://www.chess.com"]

[Event "Titled Tuesday Blitz April 11 Early 2023"]
[White "Corrales Jimenez, Fidel"]
[Black "Petre, Nad-Titus"]
[WhiteFideId "3506690"]
[BlackFideId "1204165"]
[WhiteElo "2541"]
[BlackElo "2354"]
[Result "1-0"]
[Round "04"]
[TimeControl "180+2"]
[Date "2023.04.11"]
[WhiteClock "0:01:21"]
[BlackClock "0:00:07"]

1. d4 {[%clk 0:03:00]}  Nf6 {[%clk 0:02:59]} 2. g3 {[%clk 0:02:57]}  d5 {[%clk 0:02:58]} 3. Bg2 {[%clk 0:02:58]}  Bf5 {[%clk 0:02:58]} 4. c4 {[%clk 0:02:57]}  c6 {[%clk 0:02:53]} 5. Qb3 {[%clk 0:02:45]}  Qb6 {[%clk 0:02:39]} 6. c5 {[%clk 0:02:44]}  Qc7 {[%clk 0:02:27]} 7. Bf4 {[%clk 0:02:37]}  Qc8 {[%clk 0:02:27]} 8. Nc3 {[%clk 0:02:37]}  Nbd7 {[%clk 0:02:21]} 9. Nf3 {[%clk 0:02:33]}  h6 {[%clk 0:02:18]} 10. Rc1 {[%clk 0:02:32]}  e6 {[%clk 0:02:17]} 11. O-O {[%clk 0:02:30]}  Be7 {[%clk 0:02:17]} 12. Rfe1 {[%clk 0:02:07]}  O-O {[%clk 0:02:13]} 13. h3 {[%clk 0:02:08]}  Ne4 {[%clk 0:02:01]} 14. g4 {[%clk 0:02:06]}  Bh7 {[%clk 0:01:58]} 15. Ne5 {[%clk 0:02:04]}  Nxe5 {[%clk 0:01:42]} 16. Bxe5 {[%clk 0:01:59]}  f5 {[%clk 0:01:01]} 17. Nxe4 {[%clk 0:01:51]}  fxe4 {[%clk 0:00:58]} 18. f3 {[%clk 0:01:51]}  exf3 {[%clk 0:00:55]} 19. exf3 {[%clk 0:01:52]}  Bf6 {[%clk 0:00:55]} 20. Bxf6 {[%clk 0:01:47]}  Rxf6 {[%clk 0:00:55]} 21. Re5 {[%clk 0:01:48]}  Qd7 {[%clk 0:00:52]} 22. Rce1 {[%clk 0:01:42]}  Raf8 {[%clk 0:00:52]} 23. Qe3 {[%clk 0:01:38]}  g5 {[%clk 0:00:22]} 24. Kf2 {[%clk 0:01:31]}  Kg7 {[%clk 0:00:20]} 25. h4 {[%clk 0:01:30]}  Rg6 {[%clk 0:00:12]} 26. hxg5 {[%clk 0:01:29]}  hxg5 {[%clk 0:00:12]} 27. Rxg5 {[%clk 0:01:30]}  Qf7 {[%clk 0:00:11]} 28. Rxg6+ {[%clk 0:01:28]}  Bxg6 {[%clk 0:00:11]} 29. Qxe6 {[%clk 0:01:28]}  Qf4 {[%clk 0:00:09]} 30. Qe5+ {[%clk 0:01:25]}  Kh6 {[%clk 0:00:07]} 31. Rh1+ {[%clk 0:01:21]} 1-0


[Site "https://www.chess.com"]

[Event "Titled Tuesday Blitz April 11 Early 2023"]
[White "Ibadov, Dashgyn"]
[Black "Samadov, Read"]
[WhiteFideId "24107514"]
[BlackFideId "13417444"]
[WhiteElo "2208"]
[BlackElo "2355"]
[Result "0-1"]
[Round "04"]
[TimeControl "180+2"]
[Date "2023.04.11"]
[WhiteClock "0:00:01"]
[BlackClock "0:01:24"]

1. e4 {[%clk 0:03:00]}  c6 {[%clk 0:02:59]} 2. d4 {[%clk 0:02:59]}  d5 {[%clk 0:03:00]} 3. Nc3 {[%clk 0:02:59]}  dxe4 {[%clk 0:03:00]} 4. Nxe4 {[%clk 0:03:00]}  Bf5 {[%clk 0:03:00]} 5. Ng3 {[%clk 0:03:00]}  Bg6 {[%clk 0:03:01]} 6. h4 {[%clk 0:03:01]}  h6 {[%clk 0:03:01]} 7. h5 {[%clk 0:03:01]}  Bh7 {[%clk 0:03:02]} 8. Nf3 {[%clk 0:03:02]}  e6 {[%clk 0:03:02]} 9. Bd3 {[%clk 0:03:02]}  Bxd3 {[%clk 0:03:02]} 10. Qxd3 {[%clk 0:03:03]}  Nf6 {[%clk 0:03:03]} 11. Bd2 {[%clk 0:03:00]}  Be7 {[%clk 0:03:03]} 12. O-O-O {[%clk 0:02:59]}  c5 {[%clk 0:03:03]} 13. Ne4 {[%clk 0:02:56]}  cxd4 {[%clk 0:03:02]} 14. Nxd4 {[%clk 0:02:54]}  Nbd7 {[%clk 0:03:02]} 15. Kb1 {[%clk 0:02:39]}  Rc8 {[%clk 0:02:59]} 16. Nxf6+ {[%clk 0:02:30]}  Nxf6 {[%clk 0:02:56]} 17. Be3 {[%clk 0:01:59]}  Nd5 {[%clk 0:02:51]} 18. Qb5+ {[%clk 0:01:46]}  Qd7 {[%clk 0:02:47]} 19. Qxd7+ {[%clk 0:01:44]}  Kxd7 {[%clk 0:02:47]} 20. Rhe1 {[%clk 0:01:25]}  Bf6 {[%clk 0:02:32]} 21. f3 {[%clk 0:01:22]}  Rhd8 {[%clk 0:02:30]} 22. Bf2 {[%clk 0:01:21]}  a6 {[%clk 0:02:22]} 23. g4 {[%clk 0:01:10]}  Ke8 {[%clk 0:02:19]} 24. c3 {[%clk 0:01:03]}  b5 {[%clk 0:02:15]} 25. a3 {[%clk 0:01:01]}  Rd7 {[%clk 0:02:03]} 26. Rd2 {[%clk 0:00:30]}  Nb6 {[%clk 0:01:54]} 27. Rde2 {[%clk 0:00:28]}  Nc4 {[%clk 0:01:51]} 28. Ka2 {[%clk 0:00:25]}  Rd5 {[%clk 0:01:49]} 29. Re4 {[%clk 0:00:15]}  a5 {[%clk 0:01:47]} 30. R1e2 {[%clk 0:00:14]}  b4 {[%clk 0:01:34]} 31. axb4 {[%clk 0:00:15]}  axb4 {[%clk 0:01:35]} 32. cxb4 {[%clk 0:00:14]}  Nd6 {[%clk 0:01:35]} 33. Rf4 {[%clk 0:00:04]}  Bg5 {[%clk 0:01:32]} 34. Rfe4 {[%clk 0:00:01]}  Nxe4 {[%clk 0:01:31]} 35. Rxe4 {[%clk 0:00:02]}  Bf6 {[%clk 0:01:29]} 36. Kb3 {[%clk 0:00:01]}  Rc1 {[%clk 0:01:26]} 37. f4 {[%clk 0:00:01]}  Rf1 {[%clk 0:01:26]} 38. Bg3 {[%clk 0:00:01]}  Bxd4 {[%clk 0:01:24]} 0-1


[Site "https://www.chess.com"]